[Event "Titled Tuesday Blitz February 14 Early 2023"]
[White "Livaic, Leon"]
[Black "Beerdsen, Thomas"]
[WhiteFideId "14531534"]
[BlackFideId "1030108"]
[WhiteElo "2579"]
[BlackElo "2507"]
[Result "1-0"]
[Round "04"]
[TimeControl "180+2"]
[Date "2023.02.15"]
[WhiteClock "0:00:17"]
[BlackClock "0:00:07"]

1. e4 {[%clk 0:03:00]}  e5 {[%clk 0:02:57]} 2. f4 {[%clk 0:03:01]}  d5 {[%clk 0:02:56]} 3. exd5 {[%clk 0:03:01]}  exf4 {[%clk 0:02:56]} 4. Nf3 {[%clk 0:03:02]}  Nf6 {[%clk 0:02:57]} 5. Bb5+ {[%clk 0:03:02]}  c6 {[%clk 0:02:54]} 6. dxc6 {[%clk 0:03:03]}  bxc6 {[%clk 0:02:55]} 7. Bc4 {[%clk 0:03:02]}  Bd6 {[%clk 0:02:51]} 8. Qe2+ {[%clk 0:02:45]}  Be7 {[%clk 0:02:51]} 9. d4 {[%clk 0:02:45]}  O-O {[%clk 0:02:45]} 10. O-O {[%clk 0:02:37]}  Bg4 {[%clk 0:02:39]} 11. c3 {[%clk 0:02:06]}  c5 {[%clk 0:02:34]} 12. Bxf4 {[%clk 0:01:57]}  cxd4 {[%clk 0:02:31]} 13. Kh1 {[%clk 0:01:49]}  Nc6 {[%clk 0:02:26]} 14. Qf2 {[%clk 0:01:34]}  Ne4 {[%clk 0:02:16]} 15. Qc2 {[%clk 0:01:29]}  dxc3 {[%clk 0:02:11]} 16. Nxc3 {[%clk 0:01:24]}  Nxc3 {[%clk 0:02:10]} 17. Qxc3 {[%clk 0:01:24]}  Bf6 {[%clk 0:02:09]} 18. Bxf7+ {[%clk 0:01:09]}  Rxf7 {[%clk 0:02:10]} 19. Qxc6 {[%clk 0:01:09]}  Bxb2 {[%clk 0:02:09]} 20. Rad1 {[%clk 0:01:10]}  Qe8 {[%clk 0:01:59]} 21. Qc4 {[%clk 0:00:47]}  Be6 {[%clk 0:01:51]} 22. Qc2 {[%clk 0:00:47]}  Rxf4 {[%clk 0:01:38]} 23. Qxb2 {[%clk 0:00:48]}  Qf7 {[%clk 0:01:22]} 24. Rfe1 {[%clk 0:00:47]}  Rxf3 {[%clk 0:01:16]} 25. gxf3 {[%clk 0:00:48]}  Qxf3+ {[%clk 0:01:17]} 26. Qg2 {[%clk 0:00:45]}  Qxg2+ {[%clk 0:01:11]} 27. Kxg2 {[%clk 0:00:45]}  Bxa2 {[%clk 0:01:12]} 28. Re7 {[%clk 0:00:38]}  Kh8 {[%clk 0:00:59]} 29. Rdd7 {[%clk 0:00:31]}  Rg8 {[%clk 0:00:59]} 30. Rxa7 {[%clk 0:00:32]}  Bb1 {[%clk 0:00:58]} 31. Kg3 {[%clk 0:00:31]}  h6 {[%clk 0:00:57]} 32. h4 {[%clk 0:00:31]}  Bg6 {[%clk 0:00:56]} 33. Kf4 {[%clk 0:00:28]}  Kh7 {[%clk 0:00:52]} 34. Ke5 {[%clk 0:00:27]}  Bb1 {[%clk 0:00:50]} 35. Rab7 {[%clk 0:00:27]}  Bg6 {[%clk 0:00:49]} 36. Rb2 {[%clk 0:00:26]}  Bd3 {[%clk 0:00:48]} 37. Rd2 {[%clk 0:00:25]}  Bg6 {[%clk 0:00:49]} 38. Kf4 {[%clk 0:00:23]}  Rf8+ {[%clk 0:00:48]} 39. Kg3 {[%clk 0:00:24]}  Rg8 {[%clk 0:00:48]} 40. Red7 {[%clk 0:00:24]}  Bf5 {[%clk 0:00:48]} 41. Rd8 {[%clk 0:00:24]}  Rxd8 {[%clk 0:00:46]} 42. Rxd8 {[%clk 0:00:25]}  h5 {[%clk 0:00:37]} 43. Kf4 {[%clk 0:00:24]}  Bg4 {[%clk 0:00:35]} 44. Rd6 {[%clk 0:00:22]}  Be2 {[%clk 0:00:35]} 45. Kf5 {[%clk 0:00:21]}  Bg4+ {[%clk 0:00:35]} 46. Ke5 {[%clk 0:00:21]}  Kg8 {[%clk 0:00:34]} 47. Rb6 {[%clk 0:00:20]}  Kf7 {[%clk 0:00:34]} 48. Rb7+ {[%clk 0:00:20]}  Kg6 {[%clk 0:00:33]} 49. Kf4 {[%clk 0:00:19]}  Kf6 {[%clk 0:00:33]} 50. Rb6+ {[%clk 0:00:19]}  Be6 {[%clk 0:00:27]} 51. Ra6 {[%clk 0:00:18]}  g6 {[%clk 0:00:23]} 52. Rb6 {[%clk 0:00:18]}  Ke7 {[%clk 0:00:23]} 53. Ke5 {[%clk 0:00:15]}  Bf5 {[%clk 0:00:23]} 54. Rb7+ {[%clk 0:00:15]}  Kd8 {[%clk 0:00:22]} 55. Kd6 {[%clk 0:00:15]}  Ke8 {[%clk 0:00:22]} 56. Re7+ {[%clk 0:00:15]}  Kf8 {[%clk 0:00:22]} 57. Rc7 {[%clk 0:00:16]}  Ke8 {[%clk 0:00:22]} 58. Ke5 {[%clk 0:00:16]}  Kd8 {[%clk 0:00:23]} 59. Ra7 {[%clk 0:00:16]}  Ke8 {[%clk 0:00:23]} 60. Kf6 {[%clk 0:00:17]}  Kd8 {[%clk 0:00:23]} 61. Re7 {[%clk 0:00:17]}  Bb1 {[%clk 0:00:23]} 62. Ke6 {[%clk 0:00:17]}  Kc8 {[%clk 0:00:22]} 63. Kd6 {[%clk 0:00:18]}  Bf5 {[%clk 0:00:19]} 64. Rg7 {[%clk 0:00:17]}  Kb8 {[%clk 0:00:18]} 65. Rc7 {[%clk 0:00:17]}  Be4 {[%clk 0:00:17]} 66. Kd7 {[%clk 0:00:17]}  Bf5+ {[%clk 0:00:17]} 67. Kc6 {[%clk 0:00:18]}  Be4+ {[%clk 0:00:13]} 68. Kb6 {[%clk 0:00:18]}  Bf5 {[%clk 0:00:13]} 69. Rc6 {[%clk 0:00:17]}  Ka8 {[%clk 0:00:11]} 70. Rf6 {[%clk 0:00:16]}  Kb8 {[%clk 0:00:08]} 71. Rf8+ {[%clk 0:00:17]}  Bc8 {[%clk 0:00:07]} 72. Re8 {[%clk 0:00:17]} 1-0


[Site "https://www.chess.com"]

[Event "Titled Tuesday Blitz February 14 Early 2023"]
[White "Movahed, Sina"]
[Black "Yeletsky, Ivan"]
[WhiteFideId "42520835"]
[BlackFideId "24180327"]
[WhiteElo "2340"]
[BlackElo "2494"]
[Result "0-1"]
[Round "04"]
[TimeControl "180+2"]
[Date "2023.02.15"]
[WhiteClock "0:00:09"]
[BlackClock "0:00:02"]

1. Nf3 {[%clk 0:03:00]}  c5 {[%clk 0:02:59]} 2. e4 {[%clk 0:03:00]}  e6 {[%clk 0:02:58]} 3. b3 {[%clk 0:02:59]}  a6 {[%clk 0:02:56]} 4. Bb2 {[%clk 0:02:59]}  Nc6 {[%clk 0:02:57]} 5. c4 {[%clk 0:02:59]}  Nf6 {[%clk 0:02:55]} 6. e5 {[%clk 0:02:59]}  Ng4 {[%clk 0:02:55]} 7. g3 {[%clk 0:02:58]}  Qc7 {[%clk 0:02:53]} 8. Bg2 {[%clk 0:02:58]}  Ngxe5 {[%clk 0:02:51]} 9. Nxe5 {[%clk 0:02:59]}  Nxe5 {[%clk 0:02:51]} 10. O-O {[%clk 0:03:00]}  Nc6 {[%clk 0:02:32]} 11. Re1 {[%clk 0:02:54]}  b6 {[%clk 0:02:28]} 12. Nc3 {[%clk 0:02:54]}  Be7 {[%clk 0:02:18]} 13. Nd5 {[%clk 0:02:53]}  exd5 {[%clk 0:02:19]} 14. Bxg7 {[%clk 0:02:28]}  Rg8 {[%clk 0:02:19]} 15. Bf6 {[%clk 0:02:27]}  d6 {[%clk 0:01:51]} 16. Bxd5 {[%clk 0:02:24]}  Be6 {[%clk 0:01:41]} 17. Qh5 {[%clk 0:01:46]}  O-O-O {[%clk 0:01:32]} 18. Rxe6 {[%clk 0:01:35]}  fxe6 {[%clk 0:01:31]} 19. Bxe6+ {[%clk 0:01:36]}  Kb8 {[%clk 0:01:30]} 20. Bc3 {[%clk 0:01:37]}  Rgf8 {[%clk 0:01:23]} 21. Bd5 {[%clk 0:01:27]}  Bf6 {[%clk 0:01:19]} 22. Re1 {[%clk 0:01:27]}  Bd4 {[%clk 0:01:03]} 23. Bxd4 {[%clk 0:01:18]}  Nxd4 {[%clk 0:01:02]} 24. f4 {[%clk 0:01:18]}  Qd7 {[%clk 0:00:58]} 25. b4 {[%clk 0:01:11]}  Rde8 {[%clk 0:00:52]} 26. Re3 {[%clk 0:01:05]}  cxb4 {[%clk 0:00:38]} 27. Bg2 {[%clk 0:01:00]}  Rxe3 {[%clk 0:00:23]} 28. dxe3 {[%clk 0:01:01]}  Qf5 {[%clk 0:00:24]} 29. Qh6 {[%clk 0:00:56]}  Qb1+ {[%clk 0:00:24]} 30. Bf1 {[%clk 0:00:55]}  Nf3+ {[%clk 0:00:18]} 31. Kf2 {[%clk 0:00:56]}  Rd8 {[%clk 0:00:18]} 32. Bg2 {[%clk 0:00:27]}  Nd2 {[%clk 0:00:14]} 33. Qf6 {[%clk 0:00:26]}  Rd7 {[%clk 0:00:11]} 34. Qf8+ {[%clk 0:00:22]}  Kc7 {[%clk 0:00:11]} 35. Qa8 {[%clk 0:00:23]}  a5 {[%clk 0:00:09]} 36. Ke2 {[%clk 0:00:20]}  Qc2 {[%clk 0:00:07]} 37. Bc6 {[%clk 0:00:13]}  Ne4+ {[%clk 0:00:03]} 38. Kf3 {[%clk 0:00:13]}  Qf2+ {[%clk 0:00:03]} 39. Kg4 {[%clk 0:00:12]}  Qe2+ {[%clk 0:00:03]} 40. Kf5 {[%clk 0:00:10]}  Qh5+ {[%clk 0:00:02]} 41. Kxe4 {[%clk 0:00:11]}  Re7+ {[%clk 0:00:02]} 42. Kd3 {[%clk 0:00:09]}  Qd1# {[%clk 0:00:02]} 0-1


[Site "https://www.chess.com"]

[Event "Titled Tuesday Blitz February 14 Early 2023"]
[White "Korchmar, Vasiliy"]
[Black "Indjic, Aleksandar"]
[WhiteFideId "24131750"]
[BlackFideId "911925"]
[WhiteElo "2438"]
[BlackElo "2618"]
[Result "0-1"]
[Round "04"]
[TimeControl "180+2"]
[Date "2023.02.15"]
[WhiteClock "0:00:03"]
[BlackClock "0:00:25"]

1. e4 {[%clk 0:03:00]}  e5 {[%clk 0:02:58]} 2. Nf3 {[%clk 0:03:01]}  Nc6 {[%clk 0:02:59]} 3. Bc4 {[%clk 0:03:01]}  Nf6 {[%clk 0:02:59]} 4. d3 {[%clk 0:03:00]}  d5 {[%clk 0:02:58]} 5. exd5 {[%clk 0:02:59]}  Nxd5 {[%clk 0:02:59]} 6. O-O {[%clk 0:02:58]}  Be7 {[%clk 0:02:58]} 7. Re1 {[%clk 0:02:58]}  Bg4 {[%clk 0:02:57]} 8. h3 {[%clk 0:02:57]}  Bh5 {[%clk 0:02:57]} 9. Nbd2 {[%clk 0:02:50]}  O-O {[%clk 0:02:56]} 10. Ne4 {[%clk 0:02:50]}  Nb6 {[%clk 0:02:46]} 11. Bb3 {[%clk 0:02:24]}  Kh8 {[%clk 0:02:17]} 12. Ng3 {[%clk 0:02:19]}  Bxf3 {[%clk 0:02:13]} 13. Qxf3 {[%clk 0:02:20]}  f5 {[%clk 0:02:12]} 14. Qh5 {[%clk 0:01:47]}  g6 {[%clk 0:02:08]} 15. Qh6 {[%clk 0:01:39]}  Bf6 {[%clk 0:02:06]} 16. f4 {[%clk 0:01:05]}  Bg7 {[%clk 0:01:40]} 17. Qg5 {[%clk 0:01:05]}  Qxg5 {[%clk 0:01:17]} 18. fxg5 {[%clk 0:01:06]}  a5 {[%clk 0:01:17]} 19. c3 {[%clk 0:01:01]}  a4 {[%clk 0:01:16]} 20. Bc2 {[%clk 0:01:01]}  Rfd8 {[%clk 0:01:16]} 21. h4 {[%clk 0:00:57]}  a3 {[%clk 0:01:14]} 22. bxa3 {[%clk 0:00:51]}  Nd5 {[%clk 0:01:14]} 23. h5 {[%clk 0:00:45]}  Nxc3 {[%clk 0:01:09]} 24. h6 {[%clk 0:00:43]}  Bf8 {[%clk 0:01:08]} 25. Bb2 {[%clk 0:00:43]}  Rxa3 {[%clk 0:01:04]} 26. Bxa3 {[%clk 0:00:40]}  Bxa3 {[%clk 0:01:05]} 27. Bb3 {[%clk 0:00:19]}  Nb5 {[%clk 0:00:53]} 28. Ba4 {[%clk 0:00:14]}  Nbd4 {[%clk 0:00:53]} 29. Bxc6 {[%clk 0:00:12]}  Nxc6 {[%clk 0:00:54]} 30. Rab1 {[%clk 0:00:12]}  b6 {[%clk 0:00:53]} 31. Kh1 {[%clk 0:00:06]}  Kg8 {[%clk 0:00:52]} 32. Rb3 {[%clk 0:00:05]}  Bc5 {[%clk 0:00:51]} 33. Rc1 {[%clk 0:00:04]}  Nd4 {[%clk 0:00:49]} 34. Rxc5 {[%clk 0:00:04]}  bxc5 {[%clk 0:00:48]} 35. Rb7 {[%clk 0:00:05]}  Ne6 {[%clk 0:00:48]} 36. a4 {[%clk 0:00:03]}  Rxd3 {[%clk 0:00:45]} 37. Kh2 {[%clk 0:00:02]}  Ra3 {[%clk 0:00:44]} 38. Ra7 {[%clk 0:00:02]}  c4 {[%clk 0:00:41]} 39. Ne2 {[%clk 0:00:01]}  c3 {[%clk 0:00:41]} 40. a5 {[%clk 0:00:02]}  c2 {[%clk 0:00:41]} 41. a6 {[%clk 0:00:02]}  Kf7 {[%clk 0:00:37]} 42. Ra8 {[%clk 0:00:02]}  Ke7 {[%clk 0:00:37]} 43. a7 {[%clk 0:00:02]}  Nd8 {[%clk 0:00:34]} 44. Nc1 {[%clk 0:00:01]}  Kd7 {[%clk 0:00:34]} 45. Kg1 {[%clk 0:00:01]}  e4 {[%clk 0:00:30]} 46. Kf2 {[%clk 0:00:01]}  f4 {[%clk 0:00:29]} 47. Ke2 {[%clk 0:00:02]}  f3+ {[%clk 0:00:26]} 48. gxf3 {[%clk 0:00:02]}  exf3+ {[%clk 0:00:27]} 49. Kf2 {[%clk 0:00:03]}  Ne6 {[%clk 0:00:26]} 50. Rh8 {[%clk 0:00:02]}  Rxa7 {[%clk 0:00:25]} 51. Rxh7+ {[%clk 0:00:03]}  Kd6 {[%clk 0:00:26]} 52. Rg7 {[%clk 0:00:03]}  Nxg7 {[%clk 0:00:25]} 0-1


[Site "https://www.chess.com"]

[Event "Titled Tuesday Blitz February 14 Early 2023"]
[White "Andreikin, Dmitry"]
[Black "Pakleza, Zbigniew"]
[WhiteFideId "4158814"]
[BlackFideId "1119290"]
[WhiteElo "2729"]
[BlackElo "2494"]
[Result "1/2-1/2"]
[Round "04"]
[TimeControl "180+2"]
[Date "2023.02.15"]
[WhiteClock "0:00:11"]
[BlackClock "0:00:35"]

1. e4 {[%clk 0:03:00]}  d6 {[%clk 0:02:58]} 2. d4 {[%clk 0:02:53]}  Nf6 {[%clk 0:02:58]} 3. Nc3 {[%clk 0:02:51]}  c6 {[%clk 0:02:59]} 4. f4 {[%clk 0:02:45]}  Qb6 {[%clk 0:02:59]} 5. Nf3 {[%clk 0:02:32]}  Bg4 {[%clk 0:02:58]} 6. e5 {[%clk 0:02:24]}  Nd5 {[%clk 0:02:58]} 7. Nxd5 {[%clk 0:02:23]}  cxd5 {[%clk 0:02:59]} 8. c3 {[%clk 0:02:22]}  e6 {[%clk 0:02:59]} 9. Bd3 {[%clk 0:02:22]}  g6 {[%clk 0:02:58]} 10. O-O {[%clk 0:02:19]}  Nc6 {[%clk 0:02:58]} 11. Kh1 {[%clk 0:02:11]}  Be7 {[%clk 0:02:56]} 12. Qe1 {[%clk 0:02:05]}  Bf5 {[%clk 0:02:53]} 13. Bxf5 {[%clk 0:01:58]}  gxf5 {[%clk 0:02:54]} 14. Be3 {[%clk 0:01:56]}  O-O-O {[%clk 0:02:17]} 15. a4 {[%clk 0:01:50]}  Na5 {[%clk 0:02:15]} 16. exd6 {[%clk 0:01:27]}  Bxd6 {[%clk 0:02:16]} 17. Ne5 {[%clk 0:01:27]}  Qc7 {[%clk 0:02:15]} 18. Qe2 {[%clk 0:01:24]}  Kb8 {[%clk 0:02:08]} 19. b4 {[%clk 0:01:21]}  Nc4 {[%clk 0:02:01]} 20. Nxc4 {[%clk 0:01:20]}  Qxc4 {[%clk 0:02:02]} 21. Qxc4 {[%clk 0:01:20]}  dxc4 {[%clk 0:02:03]} 22. Rf3 {[%clk 0:01:15]}  Kc7 {[%clk 0:01:53]} 23. Rh3 {[%clk 0:01:13]}  h5 {[%clk 0:01:52]} 24. Rg3 {[%clk 0:01:11]}  Rdg8 {[%clk 0:01:50]} 25. Rxg8 {[%clk 0:01:11]}  Rxg8 {[%clk 0:01:50]} 26. g3 {[%clk 0:01:09]}  Kc6 {[%clk 0:01:46]} 27. Kg2 {[%clk 0:01:09]}  h4 {[%clk 0:01:39]} 28. Kf3 {[%clk 0:01:06]}  hxg3 {[%clk 0:01:36]} 29. hxg3 {[%clk 0:01:07]}  Rh8 {[%clk 0:01:36]} 30. Kg2 {[%clk 0:01:07]}  Kd5 {[%clk 0:01:35]} 31. Bf2 {[%clk 0:01:03]}  a6 {[%clk 0:01:09]} 32. Kf3 {[%clk 0:01:01]}  Be7 {[%clk 0:00:57]} 33. Rb1 {[%clk 0:00:57]}  Bd6 {[%clk 0:00:54]} 34. Be3 {[%clk 0:00:35]}  b6 {[%clk 0:00:51]} 35. Bf2 {[%clk 0:00:24]}  Rh7 {[%clk 0:00:51]} 36. b5 {[%clk 0:00:21]}  a5 {[%clk 0:00:47]} 37. Re1 {[%clk 0:00:20]}  Rh8 {[%clk 0:00:46]} 38. Rg1 {[%clk 0:00:20]}  Rh3 {[%clk 0:00:40]} 39. Kg2 {[%clk 0:00:19]}  Rh8 {[%clk 0:00:40]} 40. Re1 {[%clk 0:00:19]}  Rh7 {[%clk 0:00:39]} 41. Be3 {[%clk 0:00:19]}  Rh8 {[%clk 0:00:36]} 42. Bc1 {[%clk 0:00:20]}  Rh7 {[%clk 0:00:37]} 43. Bd2 {[%clk 0:00:16]}  Rh8 {[%clk 0:00:37]} 44. Be3 {[%clk 0:00:16]}  Rh7 {[%clk 0:00:37]} 45. Bf2 {[%clk 0:00:16]}  Rh8 {[%clk 0:00:38]} 46. Kf3 {[%clk 0:00:16]}  Rh7 {[%clk 0:00:37]} 47. Rg1 {[%clk 0:00:16]}  Rh3 {[%clk 0:00:37]} 48. Be3 {[%clk 0:00:15]}  Rh2 {[%clk 0:00:35]} 49. Bf2 {[%clk 0:00:11]}  Rh3 {[%clk 0:00:35]} 1/2-1/2


[Site "https://www.chess.com"]

[Event "Titled Tuesday Blitz February 14 Early 2023"]
[White "Lenderman, Aleksandr"]
[Black "Martinez Ramirez, Lennis"]
[WhiteFideId "2021285"]
[BlackFideId "3509079"]
[WhiteElo "2572"]
[BlackElo "2426"]
[Result "1-0"]
[Round "04"]
[TimeControl "180+2"]
[Date "2023.02.15"]
[WhiteClock "0:01:08"]
[BlackClock "0:00:01"]

1. Nf3 {[%clk 0:03:00]}  Nf6 {[%clk 0:02:57]} 2. c4 {[%clk 0:02:56]}  e6 {[%clk 0:02:57]} 3. Nc3 {[%clk 0:02:56]}  d5 {[%clk 0:02:57]} 4. e3 {[%clk 0:02:56]}  dxc4 {[%clk 0:02:56]} 5. Bxc4 {[%clk 0:02:54]}  c5 {[%clk 0:02:56]} 6. d4 {[%clk 0:02:49]}  a6 {[%clk 0:02:56]} 7. O-O {[%clk 0:02:48]}  b5 {[%clk 0:02:56]} 8. Be2 {[%clk 0:02:48]}  Bb7 {[%clk 0:02:56]} 9. dxc5 {[%clk 0:02:44]}  Qxd1 {[%clk 0:02:48]} 10. Rxd1 {[%clk 0:02:40]}  Bxc5 {[%clk 0:02:48]} 11. a4 {[%clk 0:02:40]}  b4 {[%clk 0:02:45]} 12. Nb1 {[%clk 0:02:40]}  a5 {[%clk 0:02:41]} 13. Nbd2 {[%clk 0:02:35]}  Ke7 {[%clk 0:02:40]} 14. Nb3 {[%clk 0:02:27]}  Bb6 {[%clk 0:02:39]} 15. Nfd2 {[%clk 0:02:27]}  Rd8 {[%clk 0:02:32]} 16. Nc4 {[%clk 0:02:26]}  Rxd1+ {[%clk 0:02:31]} 17. Bxd1 {[%clk 0:02:27]}  Bc7 {[%clk 0:02:29]} 18. Bf3 {[%clk 0:02:27]}  Bxf3 {[%clk 0:02:10]} 19. gxf3 {[%clk 0:02:27]}  Nbd7 {[%clk 0:01:57]} 20. Bd2 {[%clk 0:02:25]}  Ne5 {[%clk 0:01:57]} 21. Nxe5 {[%clk 0:02:23]}  Bxe5 {[%clk 0:01:58]} 22. Nxa5 {[%clk 0:02:22]}  Bxb2 {[%clk 0:01:40]} 23. Bxb4+ {[%clk 0:02:22]}  Ke8 {[%clk 0:01:40]} 24. Ra2 {[%clk 0:02:20]}  Nd5 {[%clk 0:01:35]} 25. Rxb2 {[%clk 0:02:00]}  Nxb4 {[%clk 0:01:34]} 26. Rxb4 {[%clk 0:02:01]}  Rxa5 {[%clk 0:01:34]} 27. f4 {[%clk 0:02:01]}  h6 {[%clk 0:01:28]} 28. Kg2 {[%clk 0:01:59]}  g5 {[%clk 0:01:27]} 29. fxg5 {[%clk 0:01:53]}  Rxg5+ {[%clk 0:01:27]} 30. Kf3 {[%clk 0:01:54]}  Rf5+ {[%clk 0:01:22]} 31. Kg3 {[%clk 0:01:42]}  Ra5 {[%clk 0:01:19]} 32. Kh4 {[%clk 0:01:40]}  Ke7 {[%clk 0:01:19]} 33. f4 {[%clk 0:01:39]}  Kf6 {[%clk 0:01:19]} 34. e4 {[%clk 0:01:40]}  Kg6 {[%clk 0:01:13]} 35. Kg4 {[%clk 0:01:40]}  Rh5 {[%clk 0:01:01]} 36. Rb2 {[%clk 0:01:29]}  Ra5 {[%clk 0:01:00]} 37. Ra2 {[%clk 0:01:29]}  e5 {[%clk 0:00:56]} 38. f5+ {[%clk 0:01:28]}  Kf6 {[%clk 0:00:50]} 39. Kh5 {[%clk 0:01:21]}  Kg7 {[%clk 0:00:38]} 40. h4 {[%clk 0:01:18]}  Kh7 {[%clk 0:00:38]} 41. f6 {[%clk 0:01:17]}  Ra6 {[%clk 0:00:16]} 42. a5 {[%clk 0:01:16]}  Kg8 {[%clk 0:00:07]} 43. Kg4 {[%clk 0:01:15]}  Kf8 {[%clk 0:00:03]} 44. Kf5 {[%clk 0:01:14]}  Ke8 {[%clk 0:00:03]} 45. Kxe5 {[%clk 0:01:13]}  Kd7 {[%clk 0:00:04]} 46. Kf5 {[%clk 0:01:13]}  Kd6 {[%clk 0:00:03]} 47. e5+ {[%clk 0:01:14]}  Kd5 {[%clk 0:00:03]} 48. h5 {[%clk 0:01:10]}  Kd4 {[%clk 0:00:02]} 49. Rd2+ {[%clk 0:01:08]}  Ke3 {[%clk 0:00:02]} 50. Rd7 {[%clk 0:01:08]}  Rxa5 {[%clk 0:00:01]} 51. Rxf7 {[%clk 0:01:08]} 1-0


[Site "https://www.chess.com"]

[Event "Titled Tuesday Blitz February 14 Early 2023"]
[White "Parkhov, Yair"]
[Black "Drygalov, Sergey"]
[WhiteFideId "2813408"]
[BlackFideId "24171743"]
[WhiteElo "2505"]
[BlackElo "2547"]
[Result "0-1"]
[Round "04"]
[TimeControl "180+2"]
[Date "2023.02.15"]
[WhiteClock "0:00:12"]
[BlackClock "0:00:12"]

1. e4 {[%clk 0:02:55]}  c5 {[%clk 0:02:58]} 2. Nf3 {[%clk 0:02:54]}  d6 {[%clk 0:02:59]} 3. d4 {[%clk 0:02:55]}  cxd4 {[%clk 0:02:59]} 4. Nxd4 {[%clk 0:02:56]}  Nf6 {[%clk 0:03:00]} 5. Nc3 {[%clk 0:02:56]}  a6 {[%clk 0:03:00]} 6. f4 {[%clk 0:02:49]}  g6 {[%clk 0:02:53]} 7. Nf3 {[%clk 0:02:37]}  Bg7 {[%clk 0:02:51]} 8. e5 {[%clk 0:02:37]}  Nfd7 {[%clk 0:02:48]} 9. Bc4 {[%clk 0:02:08]}  Nb6 {[%clk 0:02:24]} 10. Bb3 {[%clk 0:02:03]}  O-O {[%clk 0:02:24]} 11. Be3 {[%clk 0:01:54]}  Nc6 {[%clk 0:02:12]} 12. h4 {[%clk 0:01:47]}  Bg4 {[%clk 0:02:10]} 13. h5 {[%clk 0:01:39]}  Na5 {[%clk 0:01:59]} 14. hxg6 {[%clk 0:01:38]}  hxg6 {[%clk 0:01:58]} 15. Qd4 {[%clk 0:01:16]}  Nd7 {[%clk 0:01:19]} 16. O-O-O {[%clk 0:01:14]}  Nxb3+ {[%clk 0:01:18]} 17. axb3 {[%clk 0:01:14]}  Qa5 {[%clk 0:01:15]} 18. Kb1 {[%clk 0:01:02]}  Rfe8 {[%clk 0:00:25]} 19. Nd5 {[%clk 0:00:51]}  Rac8 {[%clk 0:00:20]} 20. Bd2 {[%clk 0:00:34]}  Qc5 {[%clk 0:00:20]} 21. Qxc5 {[%clk 0:00:27]}  Nxc5 {[%clk 0:00:21]} 22. exd6 {[%clk 0:00:24]}  exd6 {[%clk 0:00:21]} 23. Bc3 {[%clk 0:00:21]}  Ne4 {[%clk 0:00:17]} 24. Bxg7 {[%clk 0:00:14]}  Kxg7 {[%clk 0:00:18]} 25. Rhe1 {[%clk 0:00:14]}  Nf2 {[%clk 0:00:15]} 26. Rxe8 {[%clk 0:00:12]}  Rxe8 {[%clk 0:00:16]} 27. Re1 {[%clk 0:00:11]}  Bxf3 {[%clk 0:00:15]} 28. Rxe8 {[%clk 0:00:10]}  Bxd5 {[%clk 0:00:15]} 29. Rd8 {[%clk 0:00:09]}  Ne4 {[%clk 0:00:15]} 30. c4 {[%clk 0:00:09]}  Bc6 {[%clk 0:00:15]} 31. Kc2 {[%clk 0:00:09]}  Kf6 {[%clk 0:00:16]} 32. g4 {[%clk 0:00:09]}  Ke7 {[%clk 0:00:16]} 33. Rg8 {[%clk 0:00:09]}  Nf6 {[%clk 0:00:16]} 34. Rb8 {[%clk 0:00:09]}  Nxg4 {[%clk 0:00:16]} 35. b4 {[%clk 0:00:09]}  Ne3+ {[%clk 0:00:14]} 36. Kd3 {[%clk 0:00:10]}  Ng2 {[%clk 0:00:14]} 37. b5 {[%clk 0:00:10]}  axb5 {[%clk 0:00:12]} 38. cxb5 {[%clk 0:00:11]}  Bxb5+ {[%clk 0:00:12]} 39. Kd4 {[%clk 0:00:11]}  Bc6 {[%clk 0:00:12]} 40. b4 {[%clk 0:00:11]}  Nxf4 {[%clk 0:00:12]} 41. b5 {[%clk 0:00:11]}  Bxb5 {[%clk 0:00:12]} 42. Rxb7+ {[%clk 0:00:11]}  Bd7 {[%clk 0:00:12]} 43. Ra7 {[%clk 0:00:12]}  Ne6+ {[%clk 0:00:12]} 0-1


[Site "https://www.chess.com"]

[Event "Titled Tuesday Blitz February 14 Early 2023"]
[White "Bodnaruk, Anastasia"]
[Black "Kamsky, Gata"]
[WhiteFideId "4181751"]
[BlackFideId "2000024"]
[WhiteElo "2350"]
[BlackElo "2665"]
[Result "1/2-1/2"]
[Round "04"]
[TimeControl "180+2"]
[Date "2023.02.15"]
[WhiteClock "0:00:06"]
[BlackClock "0:00:25"]

1. e4 {[%clk 0:03:00]}  g6 {[%clk 0:02:56]} 2. d4 {[%clk 0:03:00]}  Bg7 {[%clk 0:02:56]} 3. Nc3 {[%clk 0:03:00]}  d6 {[%clk 0:02:56]} 4. Be3 {[%clk 0:03:00]}  a6 {[%clk 0:02:57]} 5. Qd2 {[%clk 0:02:55]}  b5 {[%clk 0:02:56]} 6. h4 {[%clk 0:02:52]}  h6 {[%clk 0:02:55]} 7. O-O-O {[%clk 0:02:48]}  Bb7 {[%clk 0:02:54]} 8. f3 {[%clk 0:02:47]}  e6 {[%clk 0:02:53]} 9. g4 {[%clk 0:02:42]}  Nd7 {[%clk 0:02:51]} 10. Nge2 {[%clk 0:02:25]}  b4 {[%clk 0:02:45]} 11. Nb1 {[%clk 0:02:23]}  a5 {[%clk 0:02:45]} 12. Ng3 {[%clk 0:02:21]}  Ne7 {[%clk 0:02:39]} 13. h5 {[%clk 0:02:19]}  g5 {[%clk 0:02:38]} 14. f4 {[%clk 0:02:18]}  gxf4 {[%clk 0:02:32]} 15. Bxf4 {[%clk 0:02:18]}  e5 {[%clk 0:02:32]} 16. Be3 {[%clk 0:02:11]}  exd4 {[%clk 0:02:31]} 17. Bxd4 {[%clk 0:02:10]}  Bxd4 {[%clk 0:02:30]} 18. Qxd4 {[%clk 0:02:10]}  Ne5 {[%clk 0:02:30]} 19. Be2 {[%clk 0:02:01]}  N7c6 {[%clk 0:02:27]} 20. Qe3 {[%clk 0:01:59]}  Qg5 {[%clk 0:02:26]} 21. Qxg5 {[%clk 0:01:56]}  hxg5 {[%clk 0:02:27]} 22. Nf5 {[%clk 0:01:56]}  Ne7 {[%clk 0:02:21]} 23. Ng3 {[%clk 0:01:51]}  Ng8 {[%clk 0:02:19]} 24. Rdf1 {[%clk 0:01:27]}  Nh6 {[%clk 0:02:18]} 25. Nd2 {[%clk 0:01:27]}  Nhxg4 {[%clk 0:02:06]} 26. Rf5 {[%clk 0:01:21]}  f6 {[%clk 0:01:59]} 27. Nb3 {[%clk 0:00:51]}  c5 {[%clk 0:01:47]} 28. Nd2 {[%clk 0:00:44]}  Ke7 {[%clk 0:01:45]} 29. Rff1 {[%clk 0:00:30]}  Nh6 {[%clk 0:01:44]} 30. Nc4 {[%clk 0:00:29]}  a4 {[%clk 0:01:31]} 31. Rd1 {[%clk 0:00:21]}  Rad8 {[%clk 0:01:21]} 32. Rhf1 {[%clk 0:00:21]}  Bc8 {[%clk 0:01:13]} 33. Nb6 {[%clk 0:00:20]}  Be6 {[%clk 0:01:12]} 34. Nd5+ {[%clk 0:00:20]}  Bxd5 {[%clk 0:01:12]} 35. Rxd5 {[%clk 0:00:20]}  Ra8 {[%clk 0:01:08]} 36. Rdd1 {[%clk 0:00:17]}  a3 {[%clk 0:01:05]} 37. b3 {[%clk 0:00:17]}  Nc6 {[%clk 0:01:04]} 38. Bc4 {[%clk 0:00:14]}  Nd4 {[%clk 0:01:01]} 39. Bd5 {[%clk 0:00:15]}  Rae8 {[%clk 0:01:01]} 40. Rd2 {[%clk 0:00:13]}  Rhf8 {[%clk 0:00:59]} 41. Ne2 {[%clk 0:00:12]}  Nxe2+ {[%clk 0:00:57]} 42. Rxe2 {[%clk 0:00:12]}  Rh8 {[%clk 0:00:57]} 43. Rg2 {[%clk 0:00:09]}  Nf7 {[%clk 0:00:56]} 44. Bxf7 {[%clk 0:00:08]}  Kxf7 {[%clk 0:00:56]} 45. Rxg5 {[%clk 0:00:09]}  Rxe4 {[%clk 0:00:55]} 46. Rd5 {[%clk 0:00:09]}  Ke6 {[%clk 0:00:53]} 47. Rfd1 {[%clk 0:00:09]}  Rd8 {[%clk 0:00:49]} 48. Rxc5 {[%clk 0:00:09]}  dxc5 {[%clk 0:00:48]} 49. Rxd8 {[%clk 0:00:10]}  Rh4 {[%clk 0:00:48]} 50. Rh8 {[%clk 0:00:09]}  Ke5 {[%clk 0:00:41]} 51. h6 {[%clk 0:00:09]}  Kd4 {[%clk 0:00:40]} 52. Rd8+ {[%clk 0:00:06]}  Ke5 {[%clk 0:00:37]} 53. Rh8 {[%clk 0:00:06]}  Kf5 {[%clk 0:00:36]} 54. Kd2 {[%clk 0:00:05]}  Rh3 {[%clk 0:00:35]} 55. Rc8 {[%clk 0:00:04]}  Rxh6 {[%clk 0:00:32]} 56. Rxc5+ {[%clk 0:00:05]}  Ke6 {[%clk 0:00:27]} 57. Rb5 {[%clk 0:00:05]}  Rh2+ {[%clk 0:00:26]} 58. Kd3 {[%clk 0:00:05]}  Rh3+ {[%clk 0:00:25]} 59. Kd2 {[%clk 0:00:05]}  Rh2+ {[%clk 0:00:25]} 60. Kd3 {[%clk 0:00:05]}  Rh3+ {[%clk 0:00:25]} 61. Kd2 {[%clk 0:00:06]}  Rh2+ {[%clk 0:00:25]} 1/2-1/2


[Site "https://www.chess.com"]